Cogmind - Beta 16 @@@ ROGUE MODE // 2025.11.06 @ 18:30:51 Player: Ghraemdal Result: Destroyed self with Rocket Launcher Performance ------------- Evolutions (1) 500 Regions Visited (2) 400 Robots Destroyed (49) 245 Value Destroyed (1372) 1372 Prototype IDs (0) 0 Alien Tech Used (0) 0 Bonus (51) 51 TOTAL SCORE: 2568 Bonus ------- High Alert Combat Kills 51 Cogmind --------- Core Integrity 0/400 Matter 214/300 Energy 100/100 System Corruption 2% Temperature Cool (6) Movement Walking (175) Ox1 Location -9/Materials Parts ------- > --- POWER (1) -------- (None) > --- PROPULSION (3) --- Aluminum Leg > --- UTILITY (3) ------ Small Storage Unit Visual Processing Unit Targeting Computer > --- WEAPON (2) ------- Rocket Launcher Heavy Hammer > --- INVENTORY (8) ---- Light Treads Heat Sink Terrain Scanner Light Armor Plating Hacking Suite Heavy Assault Rifle Maul Maul Peak State ------------ > --- POWER ------------ Ion Engine > --- PROPULSION ------- Aluminum Leg Aluminum Leg Aluminum Leg > --- UTILITY ---------- Small Storage Unit Visual Processing Unit Targeting Computer > --- WEAPON ----------- Beam Rifle Heavy Assault Rifle > --- INVENTORY -------- Aluminum Leg Aluminum Leg Heat Sink Hacking Suite Small Laser Assault Rifle Light Assault Rifle Mining Laser [Rating: 13] Favorites ----------- Power Ion Engine Engine Ion Engine Propulsion Aluminum Leg Treads Light Treads Leg Aluminum Leg Wheel Wheel Utility Small Storage Unit Device Seismic Detector Storage Small Storage Unit Processor Targeting Computer Weapon Assault Rifle Energy Gun Beam Rifle Ballistic Gun Assault Rifle Launcher Grenade Launcher Special Weapon Mining Laser Impact Weapon Maul Build | -11 -10 -9 ------- Run | Yrd Mat Mat Slots Evolved 2 | . . 2 Power . | . . . Propulsion 1 | . . 1 Utility 1 | . . 1 Weapon . | . . . Parts Attached 39 | 8 4 27 Power 3 | 1 . 2 Engine 3 | 1 . 2 Core . | . . . Reactor . | . . . Propulsion 13 | 3 1 9 Treads 2 | 1 1 . Leg 6 | . . 6 Wheel 5 | 2 . 3 Hover . | . . . Flight . | . . . Utility 7 | 2 1 4 Device 3 | 1 1 1 Storage 1 | 1 . . Processor 3 | . . 3 Hackware . | . . . Protection . | . . . Artifact . | . . . Weapon 16 | 2 2 12 Energy Gun 3 | . . 3 Energy Cannon . | . . . Ballistic Gun 5 | 2 . 3 Ballistic Cannon . | . . . Launcher 4 | . 1 3 Special Weapon 1 | . 1 . Impact Weapon 3 | . . 3 Slashing Weapon . | . . . Piercing Weapon . | . . . Special Melee Weapon . | . . . Unidentified Prototypes . | . . . Parts Lost 18 | . 2 16 Power 3 | . . 3 Propulsion 8 | . 2 6 Utility 2 | . . 2 Weapon 5 | . . 5 Highest Loss Streak 7 | . 2 7 To Critical Strikes . | . . . Average Backups 7 | 4 7 7 Power . | . 1 . Propulsion 1 | 2 1 1 Utility 2 | . 2 2 Weapon 2 | 1 2 3 Tool/Special . | . . . Unused Backups 10 | 1 4 5 Power . | . . . Propulsion 3 | 1 1 1 Utility 6 | . 2 4 Weapon 1 | . 1 . Tool/Special . | . . . Average Slot Usage (%) 91 | . 99 88 Engine 10 | . 14 8 Treads 7 | . 19 1 Leg 10 | . . 15 Wheel 8 | . 7 8 Device 8 | . 14 5 Storage 11 | . 14 11 Processor 10 | . . 15 Energy Gun 5 | . . 7 Ballistic Gun 11 | . 21 6 Launcher 3 | . 5 2 Impact Weapon 2 | . . 4 Peak Build Rating 13 | 8 8 13 Average Rating 9 | 5 7 10 On Entrance 5 | . 8 8 Avg Prop Armor Cover (%) . | . . . Naked Turns . | . . . Heaviest Build 18 | 14 16 18 Greatest Support 40 | 20 40 40 Greatest Overweight (x) 5 | 1 5 3 Average Overweight (x) . | . . . Largest Inventory Capacity 8 | 8 8 8 Average Capacity 7 | 6 8 8 Most Carried 8 | 8 8 8 Average Carried 7 | 4 7 7 Final Capacity 8 | 8 8 8 Final Carried 8 | 8 8 8 Class Distribution -------------------- 72% | Mutant 27% | Scavenger-Mutant Dominant Class ---------------- Mutant | -10/Materials Mutant | -9/Materials Resources | -11 -10 -9 ----------- Run | Yrd Mat Mat Matter Collected 988 | 316 90 582 Remotely . | . . . Salvage Created 1562 | 138 225 1199 Parts 100 | 11 19 70 Haulers Intercepted . | . . . Recyclers Shooed . | . . . Parts Field Recycled . | . . . Retrieved Matter . | . . . Parts Self-Destructed . | . . . Prevented . | . . . Parts Restored . | . . . Kills | -11 -10 -9 ------- Run | Yrd Mat Mat Combat Hostiles Destroyed 37 | . 7 30 Melee 1 | . . 1 Guns 23 | . 4 19 AOE 13 | . 3 10 Classes Destroyed 9 | 3 4 2 Worker 4 | 2 . 2 Builder 1 | . . 1 Tunneler 1 | 1 . . Recycler 1 | 1 . . Operator 1 | . 1 . Watcher 4 | . 1 3 Swarmer 7 | . 3 4 Grunt 23 | . 4 19 Sentry 7 | . . 7 Best Kill Streak 5 | 2 3 5 Combat Bots Only 5 | . 3 5 Max Kills in Single Turn 3 | 1 2 3 Gunslinging . | . . . Exploded 3 | . 2 3 Melee 1 | . . 1 Uniques/NPCs Destroyed . | . . . Combat | -11 -10 -9 -------- Run | Yrd Mat Mat Hostile Shots Fired 202 | . 18 184 Missed 55 | . 3 52 Hits 147 | . 15 132 Projectile 147 | . 15 132 Critical Strikes 4 | . . 4 Damage Taken 2172 | 2 215 1955 Core 417 | . 9 408 Absorbed by Shields . | . . . Core Remaining (%) 98 | 100 96 . Volleys Fired 129 | 17 19 93 Largest 2 | 2 2 2 Hottest 100 | 40 100 80 Shots Fired 200 | 25 33 142 Gun 171 | 25 28 118 Cannon . | . . . Launcher 27 | . 3 24 Special 2 | . 2 . Kinetic 107 | 25 28 54 Thermal 66 | . 2 64 Explosive 13 | . 3 10 Electromagnetic 14 | . . 14 Robot Hit Streak 13 | 9 12 13 Robot Miss Streak 5 | 3 2 5 Penetration Max . | . . . Secondary Targets 1 | . . 1 Max Gunslinging Chain 1 | . . 1 Shots Hit Robots 132 | 17 17 98 Core Hits 76 | 8 16 52 Critical Kills 2 | 1 . 1 Critical Parts Destroyed . | . . . Critical Strikes 4 | 1 . 3 Burn 2 | . . 2 Destroy 1 | 1 . . Smash 1 | . . 1 Melee Attacks 12 | . . 12 Impact 12 | . . 12 Slashing . | . . . Piercing . | . . . Sneak Attacks . | . . . Combat Hostiles . | . . . Follow-up Attacks . | . . . Damage Inflicted 3263 | 179 351 2733 Guns 1492 | 175 174 1143 Cannons . | . . . Explosions 1635 | . 177 1458 Melee 130 | . . 130 Ramming 6 | 4 . 2 Kinetic 907 | 175 174 558 Thermal 673 | . . 673 Explosive 1186 | . 177 1009 Electromagnetic 361 | . . 361 Impact 130 | . . 130 Slashing . | . . . Piercing . | . . . Highest Corruption 2 | 1 1 2 Average Corruption 1 | 1 1 1 Corruption Purged . | . . . Corruption Blocked . | . . . Effects 2 | . 2 . Message Errors 1 | . 1 . Data Loss (major) 1 | . 1 . Overload Shots . | . . . Overflow Damage 113 | . 23 90 Projectiles . | . . . Explosions 113 | . 23 90 Melee . | . . . Knockbacks 1 | . . 1 Impact 1 | . . 1 Kinetic . | . . . Secondary . | . . . Self-Inflicted Damage 382 | 2 56 324 Shots 8 | . 2 6 Rammed 1 | 1 . . Targets Rammed 2 | 1 . 1 Kicked 1 | . . 1 Crushed . | . . . Highest Temperature 218 | . 20 218 Average Temperature 41 | . 9 46 Received Heat Transfer 786 | . 72 714 Siege Activations . | . . . Martial Activations . | . . . Shielding Activations . | . . . Robots Disrupted . | . . . Combat Hostiles . | . . . Robots Corrupted 1 | . . 1 Combat Hostiles . | . . . Parts Fried 3 | . . 3 Impact Corruptions . | . . . Robots Melted . | . . . Combat Hostiles . | . . . Parts Melted 4 | . . 4 Heat Transferred 1674 | . . 1674 Parts Sabotaged . | . . . Parts Stolen . | . . . Parts Stripped . | . . . Power Chain Reactions 2 | . . 2 Alert | -11 -10 -9 ------- Run | Yrd Mat Mat Maximum Alert Level 2 | . . 2 Low Security (%) 60 | 100 100 35 Level 1 33 | . . 54 Level 2 6 | . . 10 Level 3 . | . . . Level 4 . | . . . Level 5 . | . . . High Security . | . . . Max Security . | . . . Peak Influence 564 | 5 111 564 Initial 16 | . . 16 Average 167 | . 52 243 Influence Increases 1402 | 20 252 1130 Destroy 0b10 Robot/C 740 | . 140 600 Destroy 0b10 Robot/NC 60 | 20 10 30 Destroy Leader 218 | . 32 186 Successful Hack 20 | . 10 10 Disable Machine 135 | . 45 90 Destroy Structure 109 | . 15 94 Lose Combat Pursuer 120 | . . 120 Influence Decreases 838 | 20 212 606 Entered New Map 24 | . . 24 Time Decay 634 | 20 192 422 Lost Part 180 | . 20 160 Squads Dispatched 12 | . 3 9 Investigation 8 | . 3 5 Extermination . | . . . Reinforcement 4 | . . 4 Assault . | . . . Garrison . | . . . Intercept . | . . . Searches Triggered . | . . . Construction Impeded 1 | . . 1 Haulers Reinforced . | . . . Active Scanning Responses . | . . . Cargo Convoy Interrupts . | . . . Stealth | -11 -10 -9 --------- Run | Yrd Mat Mat Distress Signals 3 | . 1 2 Communications Jammed . | . . . Distress Signals . | . . . Times Spotted 57 | . 10 47 Peak Tracking Total 6 | . 4 6 Tactical Retreats 5 | . . 5 Traps | -11 -10 -9 ------- Run | Yrd Mat Mat Traps Triggered 4 | . . 4 Indirectly 1 | . . 1 Trap Hack Attempts . | . . . Triggered . | . . . Disarmed . | . . . Reprogrammed . | . . . Reused . | . . . Traps Extracted . | . . . Installed . | . . . Triggered . | . . . Machines | -11 -10 -9 ---------- Run | Yrd Mat Mat Machines Disabled 10 | . 3 7 Max in Single Turn 3 | . 1 3 Machines Repaired . | . . . Machines Dismantled . | . . . Machines Sabotaged . | . . . Overloaded Fab Kills . | . . . Hacking | -11 -10 -9 --------- Run | Yrd Mat Mat Machines Accessed 13 | . 6 7 Terminals 9 | . 6 3 Fabricators . | . . . Repair Stations 1 | . . 1 Recycling Units 1 | . . 1 Scanalyzers 2 | . . 2 Garrison Access . | . . . Total Hacks 32 | . 17 15 Successful 13 | . 6 7 Failed 18 | . 11 7 Catastrophic 4 | . 1 3 Database Lockouts 1 | . . 1 Manual 30 | . 16 14 Terminals 25 | . 17 8 Fabricators . | . . . Repair Stations 1 | . . 1 Recycling Units 2 | . . 2 Scanalyzers 4 | . . 4 Garrison Access . | . . . Terminal Hacks 5 | . 3 2 Branch Access Points 2 | . 1 1 Emergency Access Points 1 | . 1 . Alert Level 2 | . 1 1 Fabricator Hacks . | . . . Repair Station Hacks . | . . . Recycling Unit Hacks 1 | . . 1 Report Inventory 1 | . . 1 Scanalyzer 3 | . . 3 Retrieve Study 3 | . . 3 Garrison Access Hacks . | . . . Unauthorized Hacks 4 | . 3 1 Terminals 3 | . 3 . Botnet 3 | . 3 . Fabricators . | . . . Repair Stations . | . . . Recycling Units 1 | . . 1 Recyclers 1 | . . 1 Scanalyzers . | . . . Garrison Access . | . . . Data Cores Recovered 1 | . 1 . Used . | . . . Hacking Detections 10 | . 5 5 Full Trace Events 8 | . 4 4 Feedback Events . | . . . Feedback Blocked . | . . . Robot Schematics Acquired . | . . . Robots Built . | . . . Authchips . | . . . Time . | . . . Total Robot Build Rating . | . . . Part Schematics Acquired . | . . . Parts Built . | . . . Authchips . | . . . Time . | . . . Total Part Build Rating . | . . . Part Studies Acquired 3 | . . 3 Parts Repaired . | . . . Time . | . . . Parts Recycled . | . . . Recycled Matter . | . . . Retrieved Matter . | . . . Retrieved Components . | . . . Parts Scanalyzed . | . . . Part Schematics Acquired . | . . . Parts Damaged . | . . . Bothacking | -11 -10 -9 ------------ Run | Yrd Mat Mat Used RIF Installer . | . . . Robots Hacked . | . . . Non-combat . | . . . Combat . | . . . Robot Hacks Applied . | . . . Relay Couplers Released . | . . . Fabnet Peak Effective % . | . . . Robots Rewired . | . . . Allies Hacked . | . . . Hacks Repelled . | . . . Allies | -11 -10 -9 -------- Run | Yrd Mat Mat Total Allies . | . . . Largest Group . | . . . Highest-Rated Group . | . . . Highest-Rated Ally . | . . . Total Orders . | . . . Ally Attacks . | . . . Total Damage . | . . . Kills . | . . . Allies Corrupted . | . . . Allies Melted . | . . . Intel | -11 -10 -9 ------- Run | Yrd Mat Mat Active Infowar (turns) 1350 | 129 466 755 Optics 384 | . . 384 Sensors 468 | . 183 285 Seismic 498 | 129 283 86 Robot Analysis Total . | . . . Derelict Logs Recovered . | . . . Drone Launches . | . . . Drone Recoveries . | . . . Exploration | -11 -10 -9 ------------- Run | Yrd Mat Mat Turns Passed 1643 | 152 466 1025 Spaces Moved 908 | 97 254 557 Core 27 | 7 1 19 Treads 220 | 17 180 23 Legs 330 | . . 330 Wheels 331 | 73 73 185 Hover . | . . . Flight . | . . . Fastest Speed 50 | 50 80 70 Average Speed 114 | 93 137 107 Slowest Speed 300 | 160 300 200 Overloaded Moves . | . . . Propulsion Burnouts . | . . . Robots Hopped . | . . . Potential Cave-ins . | . . . Cave-ins Triggered . | . . . Exploration Rate (%) 32 | 5 45 48 Regions Visited 2 Branch Regions . Pre-discovered Areas . | . . . Known Exits Taken . | . . . Unknown Exits Taken 2 | 1 1 . Scrap Searched . | . . . Spaces Dug 14 | . 9 5 Terrain Destroyed 143 | . 15 128 Melee 5 | . . 5 Projectile 1 | . 1 . AOE 137 | . 14 123 Terrain Rammed . | . . . Walls Destroyed . | . . . Machines Disabled . | . . . Actions | -11 -10 -9 --------- Run | Yrd Mat Mat Total 1287 | 134 335 818 Wait 134 | . 45 89 Move 906 | 96 253 557 Hop . | . . . Pick Up 31 | 11 6 14 Fast Attach 19 | 5 . 14 Attach 14 | 2 2 10 Detach 6 | . . 6 Swap 17 | 1 6 10 Drop 17 | 1 4 12 Fire 129 | 17 19 93 Melee 12 | . . 12 Ram 1 | 1 . . Kick 1 | . . 1 Crush . | . . . Escape Stasis . | . . . Rewire . | . . . Trap . | . . . Miscellaneous . | . . . Route ------- -11/Scrapyard -10/Materials (discovered 3 exits: *Mat x2 / Min) -9/Materials (discovered 2 exits: *Min x2) History --------- Turn | Location | Event 7 | -11/Scrapyard | Discovered new exit (range 16) 153 | -11/Scrapyard | Entered Materials 305 | -10/Materials | Build established: Mutant 347 | -10/Materials | Identified exit to Mines 413 | -10/Materials | Discovered new exit (range 9) 616 | -10/Materials | Discovered new exit (range 5) 619 | -10/Materials | Entered another Materials area 619 | -9/Materials | Evolved 2 slots: Propulsion x1, Utility x1 647 | -9/Materials | Discovered new exit (range 15) 934 | -9/Materials | Discovered new exit (range 16) 1027 | -9/Materials | Core integrity fell below 50% 1055 | -9/Materials | Lost 7 parts (1p2n1u3w) 1151 | -9/Materials | Central database locked down 1372 | -9/Materials | Build established: Scavenger-Mutant 1440 | -9/Materials | Core integrity fell below 20% 1536 | -9/Materials | Identified exit to Mines 1583 | -9/Materials | Lost 4 parts (1p2n1w) 1644 | -9/Materials | Destroyed self with Rocket Launcher Last Messages --------------- Heat Sink (90%) Lgt. Treads (84%) Lgt. Armor Plating (86%) >>Trojan(Recyclers) Trojan loaded successfully. Testing... Recycler tracking enabled and active. 01593_ ALERT: Suspicious activity at Recycling Unit M001. Dispatching Investigation squad. 01600_ T-07 Excavator is excavating. 01617_ Triggered Shock Trap. 01617_ The floor emits a surge of raw power. 01617_ System corrupted (+1). 01625_ T-07 Excavator is excavating. 01638_ G-34 Mercenary destroyed. 01638_ Terminal disabled. 01638_ G-34 Mercenary destroyed. 01640_ U-05 Engineer lays Concrete. [Achievement: Let's See Who's Tougher] 01642_ G-34 Mercenary destroyed. Map ----- +----------------------------------------------------+ | ?????????????### ##??????? | | ?????????????# #####???? | | ?????????????# ##??? | | ?????????????# # #??? | | ?????????????# #??? | | ?????????????# #??# | | ?????????????# % #??# | | ?????????????# # #??# | | ?????????????# # # ##??# | | ?????????????# #### #???# | | ?????????????### #+######### ##### | | ################# ##! | | # + ^ ### | | # # ### | | # # """ """ """ #?# | | # # "Y" """ """ """ #?# | | # # """ """ """ """ ### | | # + r r | | # # ! | | # # ###### | | # # # # ### | | # # #######?? | | # # # #???????? | | # #?#??????????? | | ###### ##########????????????? | | ?????# @ #?????????????????????? | | ?????# *%g #??????????????????? | | ????# [=g #??????????????????? | | ????## %g #??????????????????? | | ?????# " #??????????????????? | | ?????# #?????????????????? | | ?????#| """ #?????????????????? | | ?????# """ #?????????????????#+ | | ?????# """ #??????????????????? | | ?????# #??????????????????? | | ?????#####+####????????????????? | | ???????????????????????????????### | | ?????????????????????????????????? | | ?????????????????????????????????? | | ?????????????????????????????????? | | ?????????????????????????????????? | | ?????????????????????????????????? | | ?????????????????????????????????? | | ?????????????????????????????????? | | ?????????????????????????????????? | | ?????????????????????????????????? | | ?????????????????????????????????? | | ?????????????????????????????????? | | ?????????????????????????????????? | | ?????????????????????????????????? | +----------------------------------------------------+ Best States ------------- Heat Dissipation 38 Energy Generation 10 Energy Capacity 250 Matter Stores 300 Matter Capacity 300 Sight Range 18 Robot Scan Range 14 Terrain Scan Density 10 Evasion (%) 55 Targeting Accuracy 5 Recoil Reduction 2 Item Schematics ----------------- None Robot Schematics ------------------ None Fabricated ------------ Nothing Repaired ---------- Nothing Studied --------- Wheel | -9/Materials | Hacked Assault Rifle | -9/Materials | Hacked Aluminum Leg | -9/Materials | Hacked Alien Tech Used ----------------- None Achievements -------------- Batter Up Ghost 'Em Let's See Who's Tougher Part-time Excavator Challenges ------------ None Game ------ Seed CooledExplosiveMatter Manual? 0 Play Time 00:41:05 Cumulative 8.6 hours Start 2025.11.06 @ 17:15:45 End 2025.11.06 @ 18:30:51 Sessions 1 Manual Loads 0 Difficulty Rogue Special Mode None Game No. 12 Rogue 12 Adventurer 0 Explorer 0 Win Type - Total 0 Types 0/0/0/0/0/0/0/0/0/0 Lore% 7 Gallery% 13 Achievement% 12 Wizard Run 0 Options --------- Layout 2 ASCII 0 Keyboard 1 Movement Numpad Keybinds 0 Fullscreen 1 Font 24/Smallcaps Map View 50x44 Zoom Use 5% Tactical HUD 1 Map Filters NONE Filters NONE Steam 1 RUN: 4f0b0de0-bf2a-45a2-b9b0-c3daf6b6f52a